Cogmind - Beta 14 @@@ ROGUE MODE // 2025.01.20 @ 01:13:08 Player: AnotherZach Result: Destroyed by P-80 Master with Gamma Rifle Performance ------------- Evolutions (8) 4000 Regions Visited (27) 5400 Robots Destroyed (277) 1385 Value Destroyed (13473) 13473 Prototype IDs (62) 1240 Alien Tech Used (3) 600 Bonus (12625) 12625 TOTAL SCORE: 38723 Bonus ------- High Alert Combat Kills 2666 Follower Combat Kills 2414 Entered Garrisons 800 Used RIF Installer 500 Network Hubs Disabled 600 Built Enhanced Grunts 300 A7 Reached Mainframe 300 Met R17 at Cetus 500 Used Core Reset Matrix 3000 Hacked Protovariant 500 Met R17 at Research 2000 Scanned by Researcher 500 Friendly Fire -1455 Cogmind --------- Core Integrity 0/1450 Matter 102/300 Energy 150/150 System Corruption 13% Temperature Cool (0) Movement Core (150) Ox2 Location -2/Quarantine Parts ------- > --- POWER (3) -------- Micro Antimatter Reactor > --- PROPULSION (6) --- (None) > --- UTILITY (11) ----- Improved Melee Analysis Suite Advanced Target Analyzer > --- WEAPON (3) ------- (None) > --- INVENTORY (5) ---- Light Quantum Reactor Phase Redirector Helical Railgun Helical Railgun Peak State ------------ > --- POWER ------------ Light Antimatter Reactor Light Antimatter Reactor Quantum-Antimatter Reactor > --- PROPULSION ------- Centrium Heavy Treads Flying Myomer Exoskeleton > --- UTILITY ---------- Armored Scrap Engine Advanced Heat Sink Advanced Cooling System Medium Storage Unit Advanced Sensor Array Improved Transmission Jammer Centrium Medium Armor Plating Centrium Medium Armor Plating > --- WEAPON ----------- Advanced KE Penetrator Helical Railgun Ballistic HMG Construct/C > --- INVENTORY -------- Light Particle Reactor Centrium Medium Armor Plating Graphene Brace Long-range Tractor Beam Advanced KE Penetrator Helical Railgun Helical Railgun Helical Railgun Smartbomb Launcher [Rating: 156] Favorites ----------- Power Constructs Engine Makeshift Power Source Power Core Light Nuclear Core Reactor Constructs Propulsion Constructs Treads Armored Treads Leg Advanced Myomer Leg Wheel Wheel Hover Unit Linear Gravjet Flight Unit Constructs Utility Armored Scrap Engine Device Armored Scrap Engine Storage Huge Storage Unit Processor Advanced Target Analyzer Hackware Hacking Suite Protection Centrium Medium Armor Plating Artifact Phase Redirector Weapon Constructs Energy Gun Heavy EM Shotgun Energy Cannon Constructs Ballistic Gun Constructs Ballistic Cannon Light Cannon Launcher Compact Tesla Bomb Launcher Special Weapon Advanced Remote Datajack Impact Weapon Hammer Slashing Weapon Katana Piercing Weapon Spear Special Melee Weapon Improved Datajack Build | -11 -10 -10 -10 -9 -8 -8 -8 -6 -6 -6 -6 -5 -5 -4 -4 -4 -4 -4 -4 -4 -3 -3 -3 -2 -2 -2 -2 ------- Run | Yrd Mat Min Exi Min Mat Sto Rec Fac Gar Fac Low Fac Gar Fac Was Fac Ext Cet Arc Hub Res Tes Gar Res Gar Res Qua Slots Evolved 16 | . . . . . 4 . . 4 . . . 2 . 2 . . . . . . 2 . . 2 . . . Power 2 | . . . . . . . . 1 . . . . . . . . . . . . 1 . . . . . . Propulsion 4 | . . . . . 2 . . 2 . . . . . . . . . . . . . . . . . . . Utility 9 | . . . . . 2 . . . . . . 2 . 2 . . . . . . 1 . . 2 . . . Weapon 1 | . . . . . . . . 1 . . . . . . . . . . . . . . . . . . . Parts Attached 378 | 8 17 1 . . 26 14 3 15 17 23 10 20 22 19 3 4 25 7 3 3 23 30 26 2 20 12 25 Power 35 | 1 1 . . . 3 1 . 2 3 1 1 3 1 1 . . 2 . 1 . 3 3 1 . 3 1 3 Engine 7 | 1 . . . . 2 . . 1 2 . 1 . . . . . . . . . . . . . . . . Core 12 | . 1 . . . 1 1 . 1 1 1 . 3 1 . . . 2 . . . . . . . . . . Reactor 16 | . . . . . . . . . . . . . . 1 . . . . 1 . 3 3 1 . 3 1 3 Propulsion 68 | 3 4 . . . 9 4 . 2 5 3 4 3 4 2 . . 11 1 . . 1 1 2 . 2 2 5 Treads 33 | . 2 . . . 9 4 . . 1 . 1 . 1 2 . . 10 1 . . . . . . . . 2 Leg 9 | . . . . . . . . . 2 2 1 2 . . . . 1 . . . . . . . . . 1 Wheel 7 | 3 2 . . . . . . . . 1 1 . . . . . . . . . . . . . . . . Hover 3 | . . . . . . . . . . . . 1 . . . . . . . . . . . . . . 2 Flight 16 | . . . . . . . . 2 2 . 1 . 3 . . . . . . . 1 1 2 . 2 2 . Utility 159 | 2 3 . . . 6 3 2 8 4 10 3 11 14 10 2 2 11 5 2 3 10 15 13 1 6 6 7 Device 87 | 1 1 . . . 3 2 1 6 3 7 1 8 7 7 2 . 8 3 2 . 4 6 7 1 3 2 2 Storage 16 | 1 1 . . . 1 . . 1 . . . 2 2 1 . . 1 . . . 2 2 1 . 1 . . Processor 15 | . . . . . 1 . . . . 1 1 1 2 . . . 1 . . . 3 1 . . 1 . 3 Hackware 20 | . 1 . . . 1 1 1 1 . 1 . . 1 1 . 1 1 . . 1 . 1 4 . 1 3 . Protection 19 | . . . . . . . . . 1 1 1 . 2 1 . 1 . 2 . 2 1 5 1 . . 1 . Artifact 2 | . . . . . . . . . . . . . . . . . . . . . . . . . . . 2 Weapon 116 | 2 9 1 . . 8 6 1 3 5 9 2 3 3 6 1 2 1 1 . . 9 11 10 1 9 3 10 Energy Gun 17 | 2 2 . . . 4 1 1 . . 1 . . 2 1 . . 1 1 . . . . . . . . 1 Energy Cannon 13 | . 1 . . . 1 . . . . 2 1 . . . 1 . . . . . 1 . 1 . 3 1 1 Ballistic Gun 30 | . 1 . . . . 4 . 1 3 . . . 1 . . . . . . . 7 5 4 . 3 . 1 Ballistic Cannon 9 | . 2 1 . . 1 . . . . . . . . . . . . . . . . . . . . . 5 Launcher 25 | . . . . . 1 1 . . 1 4 . 3 . 1 . 1 . . . . 1 5 3 . 1 1 2 Special Weapon 8 | . . . . . . . . . . . . . . 2 . . . . . . . . 2 1 2 1 . Impact Weapon 2 | . 1 . . . . . . . . . . . . . . . . . . . . 1 . . . . . Slashing Weapon 5 | . . . . . 1 . . . . . 1 . . 2 . 1 . . . . . . . . . . . Piercing Weapon 2 | . . . . . . . . 1 1 . . . . . . . . . . . . . . . . . . Special Melee Weapon 5 | . 2 . . . . . . 1 . 2 . . . . . . . . . . . . . . . . . Unidentified Prototypes 29 | . . . . . 2 3 1 . . 5 . . . . . . . 3 . . 3 7 . . 1 . 4 Corrupted Parts 2 | . . . . . . . 1 1 . . . . . . . . . . . . . . . . . . . System Corruption 4 | . . . . . . . 2 2 . . . . . . . . . . . . . . . . . . . Parts Lost 119 | . 5 . . . 5 1 . . 2 17 . 11 9 4 . 1 2 1 . 4 1 9 9 . 6 13 19 Power 27 | . 1 . . . 2 1 . . . 3 . 3 1 1 . . 1 1 . 1 . 3 2 . 2 3 2 Propulsion 28 | . 1 . . . 1 . . . 2 4 . 5 2 . . . . . . . . 1 . . 1 3 8 Utility 32 | . 1 . . . 1 . . . . 3 . 1 4 1 . . 1 . . 2 1 4 3 . 3 3 4 Weapon 32 | . 2 . . . 1 . . . . 7 . 2 2 2 . 1 . . . 1 . 1 4 . . 4 5 Highest Loss Streak 12 | . 5 . . . 3 1 . . 2 9 . 5 4 3 . 1 1 1 . 4 1 4 3 . 1 10 12 To Critical Strikes 3 | . . . . . . . . . . . . 1 1 . . . . . . 1 . . . . . . . Average Slot Usage (%) 72 | . 96 100 100 100 99 98 83 72 60 52 53 63 57 54 62 63 67 73 73 71 73 71 56 67 67 66 43 Engine 1 | . 2 . . . 4 4 . 3 6 3 3 1 1 1 . . . . . . . . . . . . . Core 4 | . 11 14 14 14 4 3 9 8 . . . 5 4 1 . . 4 10 6 5 . . . . . . . Reactor 1 | . . . . . . . . . . 2 . . . 3 5 5 1 . 3 5 12 11 2 4 7 5 3 Treads 10 | . 6 . . . 27 36 26 . 1 3 3 3 4 2 10 10 12 5 5 5 1 . 1 . . . . Leg 2 | . . . . . . . 1 . 4 2 13 9 . 2 . . 1 5 5 5 . . . . 1 . 1 Wheel 2 | . 21 28 28 28 8 . . . . . 4 1 . . . . . . . . . . . . . . . Flight 2 | . . . . . . . . 20 7 . 3 1 6 . . . . . . . 7 9 4 13 3 7 4 Device 11 | . 2 . . . 6 4 8 10 12 11 7 9 13 12 19 20 15 23 26 24 18 13 14 13 18 13 4 Storage 6 | . 14 14 14 14 9 9 9 6 6 5 . 3 4 5 5 5 5 5 5 5 4 4 4 4 4 4 2 Processor 4 | . . . . . 9 9 2 . . . 4 10 4 6 5 3 . . . . 7 9 9 8 8 13 16 Hackware 5 | . 8 14 14 14 10 13 8 1 . . . . . 1 . 3 5 4 . . . 1 2 13 8 10 4 Protection 1 | . . . . . . . . . . . 4 . . 3 1 2 4 4 5 5 5 5 1 . . . . Energy Gun 3 | . 4 . . . 8 5 8 8 5 3 1 . . 1 5 3 1 1 5 5 . 1 1 . 2 2 . Energy Cannon 2 | . 2 . . . 4 . . . 3 8 . 3 4 1 4 1 6 8 5 4 . . . . 1 2 1 Ballistic Gun 6 | . 11 14 14 14 2 11 7 5 7 3 . . 3 2 5 3 4 5 5 5 13 11 8 8 8 2 . Ballistic Cannon 1 | . 7 14 14 14 . . . . . . . 2 2 1 . . . . . . . . . . . . . Peak Build Rating 156 | 9 13 13 14 14 29 38 54 66 76 85 67 88 101 101 110 110 125 136 138 140 156 154 128 127 140 141 112 Average Rating 74 | 7 10 13 13 14 24 34 46 63 65 71 54 72 84 82 102 103 112 128 137 137 146 139 112 122 126 126 72 On Entrance 76 | . 9 13 13 14 14 29 38 51 65 76 53 67 83 70 98 110 103 118 136 138 119 146 128 119 127 140 78 Naked Turns . | . . . . . . . . . . . . . . . . . . . . . . . . . . . . Heaviest Build 137 | 13 50 50 50 50 94 95 94 67 77 85 19 57 137 76 87 74 80 67 71 75 87 115 91 72 92 73 72 Greatest Support 164 | 26 40 20 20 20 82 82 80 68 93 96 60 105 143 84 78 78 128 103 103 103 116 116 164 87 88 81 52 Greatest Overweight (x) 10 | 1 2 2 2 2 4 1 3 . 2 3 3 2 10 1 1 . 1 . . . . . . . 2 . 5 Average Overweight (x) . | . 1 2 2 2 2 1 1 . . . . . . . . . . . . . . . . . . . . Largest Inventory Capacity 25 | 8 20 20 20 20 25 25 25 25 20 20 5 25 25 10 10 10 10 10 10 10 15 20 20 20 20 15 15 Average Capacity 16 | 7 15 20 20 20 24 25 25 20 20 18 5 9 14 10 10 10 10 10 10 10 12 15 19 20 19 15 10 Most Carried 25 | 8 18 18 20 20 25 25 25 24 20 20 4 10 16 10 10 10 10 10 10 10 15 16 20 20 20 15 13 Average Carried 15 | 6 9 18 19 19 24 24 22 19 19 16 3 8 10 7 9 9 9 9 10 9 12 14 17 19 19 14 7 Final Capacity 25 | 8 20 20 20 20 25 25 25 20 20 5 5 10 5 10 10 10 10 10 10 10 15 15 20 20 15 15 5 Final Carried 25 | 8 18 18 20 20 25 25 25 20 20 2 3 7 3 10 10 10 10 10 10 9 15 15 19 20 15 12 4 Scrap Engine Consumption 359 | . . . . . . . 32 11 42 26 10 40 32 25 6 5 25 15 4 . 16 4 18 1 33 14 . Constructs Created 26 | . . . . . . . 2 1 2 2 1 4 . 2 . . 3 1 . . . 3 1 . 3 1 . Constructs Modified 108 | . . . . . . . 11 1 16 11 . 13 12 5 . . 8 2 . . 6 . 6 . 16 1 . Class Distribution -------------------- 30% | Construct 16% | Mutant 13% | Scavenger-Mutant 9% | Commander-Mutant 6% | Scavenger-Gunner 6% | Scavenger-Construct 5% | Bothacker-Gunner 4% | Derelict-Mutant Dominant Class ---------------- Scavenger-Mutant | -10/Materials Scavenger-Mutant | -10/Mines Scavenger-Mutant | -10/Exiles Commander-Mutant | -9/Mines Scavenger-Mutant | -8/Materials Hacker-Mutant | -8/Storage Commander-Mutant | -8/Recycling Construct | -6/Factory Construct | -6/Garrison Construct | -6/Factory Derelict-Mutant | -6/Lower Caves Construct | -5/Factory Construct | -5/Garrison Mutant | -4/Factory Construct | -4/Waste Mutant | -4/Factory Construct | -4/Extension Scavenger-Construct | -4/Cetus Scavenger-Construct | -4/Archives Scavenger-Construct | -4/Hub_04(d) Scavenger-Gunner | -3/Research Scavenger-Gunner | -3/Testing Scavenger-Gunner | -3/Garrison Bothacker-Mutant | -2/Research Bothacker-Gunner | -2/Garrison Bothacker-Sprinter | -2/Research Scavenger-Mutant | -2/Quarantine Resources | -11 -10 -10 -10 -9 -8 -8 -8 -6 -6 -6 -6 -5 -5 -4 -4 -4 -4 -4 -4 -4 -3 -3 -3 -2 -2 -2 -2 ----------- Run | Yrd Mat Min Exi Min Mat Sto Rec Fac Gar Fac Low Fac Gar Fac Was Fac Ext Cet Arc Hub Res Tes Gar Res Gar Res Qua Matter Collected 9307 | 280 326 . 83 3 330 203 212 110 669 250 263 488 606 334 . 50 488 162 220 4 981 558 1004 . 821 151 711 Remotely 357 | . . . . . . . . . . . . . . 8 . . . . . . . . 349 . . . . Salvage Created 13910 | 190 639 . 168 12 737 387 412 187 907 1457 166 1305 696 522 . 50 1215 126 318 10 941 850 762 . 838 99 916 Parts 647 | 14 42 . 9 3 51 13 14 10 46 63 4 62 30 30 . 3 38 5 15 . 38 37 40 . 37 . 43 Haulers Intercepted 12 | . 2 . . . 2 . . . . 2 . . . . . . 1 . . . 4 . . . . . 1 Recyclers Shooed 17 | . 2 . . . . . . 1 . 6 . 1 . 2 . . 4 . . . 1 . . . . . . Parts Field Recycled . | . . . . . . . . . . . . . . . . . . . . . . . . . . . . Retrieved Matter . | . . . . . . . . . . . . . . . . . . . . . . . . . . . . Parts Self-Destructed 9 | . . . . . . . . . . . 9 . . . . . . . . . . . . . . . . Prevented . | . . . . . . . . . . . . . . . . . . . . . . . . . . . . Kills | -11 -10 -10 -10 -9 -8 -8 -8 -6 -6 -6 -6 -5 -5 -4 -4 -4 -4 -4 -4 -4 -3 -3 -3 -2 -2 -2 -2 ------- Run | Yrd Mat Min Exi Min Mat Sto Rec Fac Gar Fac Low Fac Gar Fac Was Fac Ext Cet Arc Hub Res Tes Gar Res Gar Res Qua Combat Hostiles Destroyed 195 | . 13 . . . 15 7 . 5 15 12 3 20 14 9 . 1 8 1 1 . 5 14 24 . 16 1 11 Melee 10 | . . . . . 1 . . . . . . . . 7 . . 1 . . . . . 1 . . . . Guns 73 | . 4 . . . 7 5 . 5 11 4 2 . 2 1 . 1 2 . 1 . 5 6 7 . 10 . . Cannons 37 | . 5 . . . 5 . . . 1 6 1 2 7 . . . 2 . . . . . . . . . 8 AOE 58 | . 4 . . . 2 1 . . 3 2 . 13 . 1 . . . . . . . 8 16 . 6 . 2 Classes Destroyed 19 | 2 6 . . . 2 1 . . 1 5 . 1 . . . . . . . . . 1 . . . . . Worker 10 | . 2 . . . . 1 . . . 1 . . . 1 . . . . . . 4 1 . . . . . Builder 7 | . . . . . 1 . . . . 3 . 1 . . . . . . . 1 1 . . . . . . Tunneler 7 | 5 1 . . 1 . . . . . . . . . . . . . . . . . . . . . . . Hauler 12 | . 2 . . . 2 . . . . 2 . . . . . . 1 . . . 4 . . . . . 1 Recycler 14 | 1 1 . . . . 1 1 . . 4 . 1 . 1 . . 4 . . . . . . . . . . Mechanic 3 | . . . . . . 1 . . . 1 . . . . . . . . . . 1 . . . . . . Operator 14 | . 2 . . . 1 1 . . . . . . . 1 . . 2 . 7 . . . . . . . . Watcher 7 | . 2 . . . . . . . . . . 2 . . . . . 1 . . 1 1 . . . . . Swarmer 61 | . 6 . . . 2 . . 4 3 2 2 5 4 3 . . . . . . 1 5 18 . 6 . . Cutter 8 | . . . . . . . . . 3 . . . 2 3 . . . . . . . . . . . . . Grunt 79 | . 7 . . . 6 6 6 . 6 5 . 11 2 2 . . 4 . . . 4 6 4 . 6 . 4 Brawler 3 | . . . . . . . . . . . . 2 1 . . . . . . . . . . . . . . Duelist 1 | . . . . . . . . . . 1 . . . . . . . . . . . . . . . . . Researcher 1 | . . . . . . . . . . . . . . . . . . . . . . 1 . . . . . Sentry 19 | . . . . . 7 1 . 1 3 . . 2 . 1 . . 3 . 1 . . . . . . . . Specialist 1 | . . . . . . . . . . 1 . . . . . . . . . . . . . . . . . Hunter 11 | . . . . . . . . . . 1 . . 2 . . . . 1 . . . 2 . . . 1 4 Programmer 12 | . . . . . . . . . . 1 . . . . . 1 1 . . . . 1 1 . 4 . 3 Behemoth 5 | . . . . . . . . . . 1 . . 3 . . . . . . . . . 1 . . . . Investigator 1 | . . . . . . . . . . . . . . . . . . . . . . 1 . . . . . Decomposer 3 | . . . . . . . . . . . 3 . . . . . . . . . . . . . . . . Butcher 1 | . . . . . . . . . . . 1 . . . . . . . . . . . . . . . . Best Kill Streak 10 | 2 10 . . 1 6 6 1 3 6 4 2 6 3 5 . 1 2 1 3 1 4 8 10 . 6 1 9 Combat Bots Only 10 | . 6 . . . 5 3 . 3 6 2 2 6 3 5 . 1 2 1 1 . 3 8 10 . 6 1 8 Max Kills in Single Turn 7 | 1 3 . . 1 2 2 2 1 2 3 1 3 1 1 . 1 1 1 1 1 2 5 7 . 4 1 2 Gunslinging 1 | . . . . . . . . . . . . . . . . . . . . . 1 1 . . . . . Exploded 7 | . 2 . . . 2 1 . . 2 1 . 3 . 1 . . . . . . . 5 7 . 4 . 2 Melee 1 | . . . . . 1 . . . . . . . . 1 . . 1 . . . . . 1 . . . . Uniques/NPCs Destroyed . | . . . . . . . . . . . . . . . . . . . . . . . . . . . . Combat | -11 -10 -10 -10 -9 -8 -8 -8 -6 -6 -6 -6 -5 -5 -4 -4 -4 -4 -4 -4 -4 -3 -3 -3 -2 -2 -2 -2 -------- Run | Yrd Mat Min Exi Min Mat Sto Rec Fac Gar Fac Low Fac Gar Fac Was Fac Ext Cet Arc Hub Res Tes Gar Res Gar Res Qua Hostile Shots Fired 2996 | . 59 . . . 76 56 . 79 160 305 40 155 269 139 . 6 161 43 3 146 64 366 230 2 151 238 248 Missed 1093 | . 10 . . . 21 15 . 27 62 103 17 58 67 40 . 3 41 19 2 74 32 154 66 . 52 128 102 Damage Taken 40649 | . 574 . . . 948 666 39 664 1377 4088 535 2407 4558 1810 . 62 2660 472 54 1662 750 4416 4033 56 2528 3050 3240 Core 4454 | . 43 . . . 116 100 18 29 109 439 157 333 327 142 . 23 105 13 . 153 13 438 432 . 283 222 959 Absorbed by Shields 645 | . . . . . . . . . . . . 158 277 . . . . 185 25 . . . . . . . . Reduced by Siege Mode 245 | . . . . . . . . . . . . . 54 . . . . . . . . . 191 . . . . Redirected to Shielding 125 | . . . . . . . . . . . . . . . . . . . . . . 125 . . . . . Ignored by Resistances 335 | . . . . . . . . . . 90 7 . 35 . . . . . . . . 203 . . . . . Regen/Repaired (Parts) 9300 | . 184 . . . . . 10 195 718 689 400 744 969 572 . . 837 204 . . 720 201 1861 . 961 35 . Core Remaining (%) 54 | 100 . . . 82 . . 57 . . . 13 . 34 . . . . . . 62 . . 32 . . . . Volleys Fired 847 | 21 49 . 21 1 42 28 16 10 60 54 12 31 95 32 15 2 40 24 30 2 42 35 78 2 49 29 27 Largest 3 | 2 2 . 1 1 2 2 2 3 3 3 1 3 3 3 3 2 3 3 3 3 3 3 3 1 3 3 2 Hottest 298 | 80 80 . 20 20 123 75 116 141 156 203 90 130 163 128 248 128 219 225 216 298 134 159 181 10 226 226 148 Shots Fired 1733 | 42 87 . 21 1 80 54 20 30 155 142 12 46 151 40 44 5 110 61 88 5 126 100 128 2 108 40 35 Gun 1165 | 42 64 . 21 1 48 47 20 30 124 66 11 3 54 23 29 5 48 25 58 4 126 92 101 . 94 19 10 Cannon 459 | . 23 . . . 29 1 . . 28 70 1 22 97 2 15 . 62 36 30 1 . . 8 . 8 6 20 Launcher 63 | . . . . . 3 6 . . 3 6 . 21 . 1 . . . . . . . 8 8 . 2 . 5 Special 46 | . . . . . . . . . . . . . . 14 . . . . . . . . 11 2 4 15 . Kinetic 754 | . 45 . 21 1 18 31 4 10 80 35 . 3 50 2 . . 23 24 30 2 126 83 83 . 70 1 12 Thermal 688 | 42 2 . . . 46 . 1 10 72 83 12 22 91 20 44 5 73 37 58 3 . 9 18 . 24 6 10 Explosive 40 | . . . . . 3 6 . . 3 5 . . . 1 . . . . . . . 7 8 . 2 . 5 Electromagnetic 204 | . 40 . . . 13 17 15 10 . 19 . 21 10 3 . . 14 . . . . . 8 . 8 18 8 Robot Hit Streak 33 | 6 5 . 22 23 25 14 15 8 33 15 8 18 14 6 . 2 22 4 5 . 12 5 14 6 20 17 19 Robot Miss Streak 6 | 3 3 . . . 3 3 2 3 4 3 5 2 4 5 . . 3 4 4 . 5 4 4 . 3 3 6 Penetration Max 1 | . . . . . . . . . . 1 . . . . . . . . . . 1 1 . . 1 . . Secondary Targets 15 | . . . . . . . . 1 3 . . . . . . . . . . . 3 3 2 . 3 . . Max Gunslinging Chain 1 | . . . . . . . . 1 1 . . . . . . . . . . . 1 1 1 . 1 . . Shots Hit Robots 1107 | 22 50 . 21 1 59 40 17 25 106 111 10 31 96 43 . 2 79 34 45 . 67 52 72 2 74 24 24 Core Hits 587 | 7 27 . 7 1 37 21 14 12 68 62 8 52 20 14 . 2 35 7 21 1 30 32 44 . 32 2 31 Critical Kills 29 | . . . . . . . . . . . . 1 4 . . . 3 1 . . 4 3 2 . 2 . 9 Critical Parts Destroyed 35 | . . . 1 . . . . . . . . . . . . . . . . . 6 5 6 . 5 . 12 Critical Strikes 85 | . 2 . 1 . 1 . . 1 . 3 . 1 5 4 . . 6 1 1 . 10 8 10 . 9 . 22 Burn 6 | . . . . . 1 . . . . 1 . . . 1 . . 1 . . . . . . . 1 . 1 Meltdown 9 | . . . . . . . . . . . . 1 4 . . . 3 1 . . . . . . . . . Destroy 59 | . . . 1 . . . . . . . . . 1 . . . . . 1 . 10 8 10 . 7 . 21 Blast 3 | . 1 . . . . . . . . 2 . . . . . . . . . . . . . . . . . Corrupt 2 | . 1 . . . . . . . . . . . . . . . . . . . . . . . 1 . . Sever 5 | . . . . . . . . . . . . . . 3 . . 2 . . . . . . . . . . Impale 1 | . . . . . . . . 1 . . . . . . . . . . . . . . . . . . . Melee Attacks 83 | . 5 . . . 5 . . 13 6 6 . 5 . 37 . . 6 . . . . . . . . . . Impact 5 | . 5 . . . . . . . . . . . . . . . . . . . . . . . . . . Slashing 53 | . . . . . 5 . . . . . . 5 . 37 . . 6 . . . . . . . . . . Piercing 19 | . . . . . . . . 13 6 . . . . . . . . . . . . . . . . . . Sneak Attacks 16 | . . . . . 1 . . . . 4 . 1 . 9 . . 1 . . . . . . . . . . Combat Hostiles 1 | . . . . . . . . . . . . . . 1 . . . . . . . . . . . . . Follow-up Attacks 1 | . . . . . . . . . . . . . . 1 . . . . . . . . . . . . . Damage Inflicted 36455 | 257 1100 . 270 12 1378 1555 623 581 2562 3641 254 2404 2957 1456 . 52 2264 796 1277 400 1888 2280 3722 . 3228 346 1152 Guns 15987 | 257 420 . 270 12 602 674 377 452 1664 1450 186 69 743 160 . 52 833 296 909 . 1888 1134 1250 . 1831 223 235 Cannons 7911 | . 292 . . . 376 . . . 607 1453 56 331 2214 . . . 1057 500 368 . . . 178 . 178 123 178 Explosions 10016 | . 388 . . . 259 881 246 . 291 738 . 1873 . 97 . . . . . . . 1146 2261 . 1121 . 715 Melee 1783 | . . . . . 141 . . 129 . . . 128 . 1199 . . 186 . . . . . . . . . . Ramming 758 | . . . . . . . . . . . 12 3 . . . . 188 . . 400 . . 33 . 98 . 24 Kinetic 10638 | . 396 . 270 12 132 381 46 126 1145 723 . 69 722 . . . 354 277 475 . 1888 995 1000 . 1475 31 121 Thermal 11640 | 257 388 . . . 641 . 246 165 1126 1976 242 578 2081 127 . 52 1346 519 802 . . 139 330 . 356 34 235 Explosive 7025 | . . . . . 259 881 . . 291 334 . . . 97 . . . . . . . 1146 2181 . 1121 . 715 Electromagnetic 4611 | . 316 . . . 205 293 331 161 . 608 . 1626 154 33 . . 190 . . . . . 178 . 178 281 57 Impact . | . . . . . . . . . . . . . . . . . . . . . . . . . . . . Slashing 1654 | . . . . . 141 . . . . . . 128 . 1199 . . 186 . . . . . . . . . . Piercing 129 | . . . . . . . . 129 . . . . . . . . . . . . . . . . . . . Highest Corruption 20 | . . . . . . . 2 2 2 10 10 15 20 . 10 10 10 5 5 7 1 14 16 . 2 9 10 Average Corruption 7 | . . . . . . . 2 2 2 3 10 11 17 . 10 10 4 5 3 3 1 4 15 . 1 4 6 Corruption Purged 12 | . . . . . . . . . . . . . . . . . 7 . 5 . . . . . . . . Corruption Blocked . | . . . . . . . . . . . . . . . . . . . . . . . . . . . . Effects 318 | . . . . . . . 1 3 19 20 41 32 63 . 6 2 39 6 3 2 . 11 41 . 13 9 7 Message Errors 77 | . . . . . . . . . 4 5 7 12 19 . 1 . 10 . . . . 3 12 . 3 1 . Matter Fused 70 | . . . . . . . . 2 4 4 7 5 12 . 3 . 8 1 1 1 . 4 7 . 6 3 2 Heat Flow Errors 28 | . . . . . . . . 1 . 1 7 2 5 . 1 . 4 1 . . . 1 4 . . . 1 Energy Discharges 39 | . . . . . . . . . 4 3 9 3 4 . . . 6 2 . . . . 4 . . 2 2 Parts Rejected 5 | . . . . . . . . . . 1 1 1 . . . . . . . . . . . . . 1 1 Parts Fused 4 | . . . . . . . . . 1 . 1 . . . . . 1 . . . . . . . . 1 . Data Loss (minor) 41 | . . . . . . . . . 4 3 6 5 9 . . . 5 1 . 1 . 1 5 . 1 . . Data Loss (major) 10 | . . . . . . . 1 . . 1 2 1 1 . . 1 1 . . . . . 1 . 1 . . Misfires 9 | . . . . . . . . . . 1 . 1 1 . . 1 1 1 1 . . 1 1 . . . . Alerts 3 | . . . . . . . . . . . 1 . . . . . . . . . . . . . 1 1 . Misdirections 9 | . . . . . . . . . . . . . 7 . . . . . . . . 1 . . . . 1 Weapon Failures 23 | . . . . . . . . . 2 1 . 2 5 . 1 . 3 . 1 . . . 7 . 1 . . Overload Shots 6 | . . . . . . . . . . 3 1 . . . . . . . . 1 . . . . . . 1 Overflow Damage 828 | . 62 . . . 45 26 . 36 36 82 . 58 11 149 . . 6 . 19 53 . 5 146 . 56 14 24 Projectiles 92 | . . . . . . . . . 20 11 . 3 11 . . . 2 . 19 . . . . . . 14 12 Explosions 355 | . 62 . . . . 26 . . 16 71 . 17 . . . . . . . . . 5 146 . . . 12 Melee 381 | . . . . . 45 . . 36 . . . 38 . 149 . . 4 . . 53 . . . . 56 . . Knockbacks 18 | . 4 . . . 3 . . . . . . . 1 . . . 1 . . 3 . . . . . . 6 Impact 4 | . . . . . . . . . . . . . . . . . 1 . . 3 . . . . . . . Kinetic 14 | . 4 . . . 3 . . . . . . . 1 . . . . . . . . . . . . . 6 Secondary . | . . . . . . . . . . . . . . . . . . . . . . . . . . . . Self-Inflicted Damage 1427 | . 68 . . . 18 . . . 171 206 5 301 . . . . . . . 73 . 234 138 . 48 . 165 Shots 29 | . 2 . . . 1 . . . 3 4 . 11 . . . . . . . . . 4 2 . . . 2 Rammed 27 | . . . . . . . . . . . 3 2 . . . . 11 . . . . . 4 . 3 . 4 Targets Rammed 58 | . . . . . . . . . . . 3 2 . . . . 11 . . 16 . . 5 . 3 . 18 Kicked 30 | . . . . . . . . . . . . . . . . . . . . 16 . . . . . . 14 Crushed 1 | . . . . . . . . . . . . . . . . . . . . . . . 1 . . . . Highest Temperature 505 | 90 223 . . . 142 88 72 505 436 327 324 257 484 71 306 10 376 363 . 48 9 343 220 . 190 215 239 Average Temperature 93 | 30 60 . . . 36 33 19 97 103 84 80 56 178 28 86 10 108 136 . 32 9 88 68 . 81 91 144 Received Heat Transfer 6261 | . 174 . . . 441 378 37 81 333 861 153 527 669 223 . . 309 . 9 205 207 760 309 9 324 81 171 Effects 24 | . . . . . . . . 6 3 . 1 . 9 . . . 4 . . . . . . . . . 1 Shutdowns 7 | . . . . . . . . 6 . . . . 1 . . . . . . . . . . . . . . Energy Bleed 4 | . . . . . . . . . . . 1 . 1 . . . 2 . . . . . . . . . . Interference 5 | . . . . . . . . . 2 . . . . . . . 2 . . . . . . . . . 1 Matter Decay 2 | . . . . . . . . . 1 . . . 1 . . . . . . . . . . . . . . Short Circuit 1 | . . . . . . . . . . . . . 1 . . . . . . . . . . . . . . Damage (minor) 1 | . . . . . . . . . . . . . 1 . . . . . . . . . . . . . . Damage (major) 4 | . . . . . . . . . . . . . 4 . . . . . . . . . . . . . . Siege Activations 3 | . . . . . . . . . . . . . 1 . . . . . . . . . 2 . . . . Total Turns 140 | . . . . . . . . . . . . . 68 . . . . . . . . . 72 . . . . Longest Duration 68 | . . . . . . . . . . . . . 68 . . . . . . . . . 38 . . . . Robots Corrupted 8 | . . . . . . 1 . . . . . 4 1 . . . . . . 1 . . . . . 1 . Combat Hostiles 7 | . . . . . . 1 . . . . . 4 1 . . . . . . . . . . . . 1 . Parts Fried 15 | . 1 . . . . 2 . . . 2 . 7 1 . . . . . . 1 . . . . . 1 . Impact Corruptions 6 | . . . . . . . . . . . . . . . . . 1 . . 3 . . . . 2 . . Robots Melted 9 | . . . . . . . . . . . . 1 4 . . . 3 1 . . . . . . . . . Combat Hostiles 9 | . . . . . . . . . . . . 1 4 . . . 3 1 . . . . . . . . . Parts Melted 31 | . 1 . . . 4 . . . 1 2 1 2 3 . . . 8 2 2 . 3 . . . . . 2 Heat Transferred 17102 | 600 400 . . . 1443 . 300 250 1750 2809 425 731 2257 296 . 74 1998 870 1332 . . 185 420 . 555 37 370 Parts Sabotaged . | . . . . . . . . . . . . . . . . . . . . . . . . . . . . Parts Stolen . | . . . . . . . . . . . . . . . . . . . . . . . . . . . . Parts Stripped . | . . . . . . . . . . . . . . . . . . . . . . . . . . . . Power Chain Reactions 7 | . 2 . . . . . 2 . . 2 . . . . . . . . . . . . 1 . . . . Alert | -11 -10 -10 -10 -9 -8 -8 -8 -6 -6 -6 -6 -5 -5 -4 -4 -4 -4 -4 -4 -4 -3 -3 -3 -2 -2 -2 -2 ------- Run | Yrd Mat Min Exi Min Mat Sto Rec Fac Gar Fac Low Fac Gar Fac Was Fac Ext Cet Arc Hub Res Tes Gar Res Gar Res Qua Peak Influence 1520 | 30 555 37 . 6 293 277 150 477 883 575 . 675 1052 696 167 187 352 569 613 508 425 1067 1520 885 1344 1199 1153 Initial 855 | . 19 37 . . 1 76 55 200 160 463 . . 327 552 143 116 91 196 227 91 233 154 691 855 663 756 660 Average 370 | 12 240 37 . 3 148 139 12 335 535 416 . 387 517 571 155 153 126 391 474 210 301 564 1151 875 1185 985 890 Maximum Alert Level 4 | . 2 . . . 1 1 . 2 3 2 . 2 3 2 . . 1 2 2 2 2 3 4 3 4 4 4 Low Security (%) 42 | 100 28 100 . 100 76 84 100 18 7 . . 23 . . 100 100 84 3 . 59 . 18 . . . . . Level 1 20 | . 52 . . . 23 15 . 40 22 40 . 9 37 18 . . 15 68 4 23 94 30 . . . . . Level 2 22 | . 18 . . . . . . 40 55 59 . 66 51 81 . . . 28 95 17 5 8 10 . 3 . 14 Level 3 7 | . . . . . . . . . 14 . . . 11 . . . . . . . . 42 28 100 7 86 71 Level 4 7 | . . . . . . . . . . . . . . . . . . . . . . . 61 . 88 13 14 Level 5 . | . . . . . . . . . . . . . . . . . . . . . . . . . . . . High Security . | . . . . . . . . . . . . . . . . . . . . . . . . . . . . Max Security . | . . . . . . . . . . . . . . . . . . . . . . . . . . . . Squads Dispatched 46 | . 3 . . . 1 . . 2 . 5 . 5 . 3 . 1 2 1 . 6 3 5 . . . 6 3 Investigation 11 | . 1 . . . . . . 1 . . . . . . . . 1 1 . 5 . . . . . 2 . Extermination 6 | . . . . . . . . 1 . 2 . 1 . . . . . . . . . 1 . . . 1 . Reinforcement 23 | . 2 . . . 1 . . . . 2 . 2 . 3 . 1 1 . . 1 3 3 . . . 2 2 Assault 5 | . . . . . . . . . . 1 . 1 . . . . . . . . . 1 . . . 1 1 Garrison 1 | . . . . . . . . . . . . 1 . . . . . . . . . . . . . . . Intercept . | . . . . . . . . . . . . . . . . . . . . . . . . . . . . Searches Triggered 1 | . . . . . . . . 1 . . . . . . . . . . . . . . . . . . . Construction Impeded 1 | . . . . . . . . . . . . . . 1 . . . . . . . . . . . . . Haulers Reinforced 3 | . . . . . . . . . . 1 . . . . . . . . . . 2 . . . . . . Active Scanning Responses . | . . . . . . . . . . . . . . . . . . . . . . . . . . . . Cargo Convoy Interrupts 1 | . . . . . . . . . . 1 . . . . . . . . . . . . . . . . . Stealth | -11 -10 -10 -10 -9 -8 -8 -8 -6 -6 -6 -6 -5 -5 -4 -4 -4 -4 -4 -4 -4 -3 -3 -3 -2 -2 -2 -2 --------- Run | Yrd Mat Min Exi Min Mat Sto Rec Fac Gar Fac Low Fac Gar Fac Was Fac Ext Cet Arc Hub Res Tes Gar Res Gar Res Qua Distress Signals 26 | . 1 . . . . . 2 1 . 2 . . . 2 . . 2 2 . 2 4 3 . . . 2 3 Communications Jammed 3 | . . . . . . . . . . . . . . . . . . . . . 1 . . . . 2 . Distress Signals 3 | . . . . . . . . . . . . . . . . . . . . . 1 . . . . 2 . Times Spotted 598 | . 24 . . . 23 12 5 23 23 45 16 35 45 46 1 3 37 12 10 33 23 51 34 1 24 52 20 Peak Tracking Total 28 | . 6 . . . 4 5 4 5 9 17 9 9 13 8 1 1 7 5 2 28 4 15 12 1 9 20 8 Tactical Retreats 66 | . 2 . . . 1 . 1 6 4 4 4 1 6 6 . . 6 . . 2 2 6 4 . . 10 1 Traps | -11 -10 -10 -10 -9 -8 -8 -8 -6 -6 -6 -6 -5 -5 -4 -4 -4 -4 -4 -4 -4 -3 -3 -3 -2 -2 -2 -2 ------- Run | Yrd Mat Min Exi Min Mat Sto Rec Fac Gar Fac Low Fac Gar Fac Was Fac Ext Cet Arc Hub Res Tes Gar Res Gar Res Qua Traps Triggered 23 | . . . . . . . . 1 1 1 1 10 1 1 . . . . . . . 1 4 . 1 1 . Indirectly 6 | . . . . . . . . . . . . 6 . . . . . . . . . . . . . . . Trap Hack Attempts 29 | . 14 . . . . . . . . 15 . . . . . . . . . . . . . . . . . Triggered . | . . . . . . . . . . . . . . . . . . . . . . . . . . . . Disarmed 1 | . 1 . . . . . . . . . . . . . . . . . . . . . . . . . . Reprogrammed 4 | . 1 . . . . 1 . . . 2 . . . . . . . . . . . . . . . . . Reused 3 | . 1 . . . . . . . . 2 . . . . . . . . . . . . . . . . . Traps Extracted 2 | . . . . . . . . . . 2 . . . . . . . . . . . . . . . . . Installed 2 | . . . . . . . . . . 2 . . . . . . . . . . . . . . . . . Triggered 8 | . 1 . . . . . . . . 2 2 3 . . . . . . . . . . . . . . . Most Traps Carried 2 | . . . . . . . . . . 2 . . . . . . . . . . . . . . . . . Objects Rigged 3 | . . . . . . 3 . . . . . . . . . . . . . . . . . . . . . Exploded 1 | . . . . . . 1 . . . . . . . . . . . . . . . . . . . . . Machines | -11 -10 -10 -10 -9 -8 -8 -8 -6 -6 -6 -6 -5 -5 -4 -4 -4 -4 -4 -4 -4 -3 -3 -3 -2 -2 -2 -2 ---------- Run | Yrd Mat Min Exi Min Mat Sto Rec Fac Gar Fac Low Fac Gar Fac Was Fac Ext Cet Arc Hub Res Tes Gar Res Gar Res Qua Machines Disabled 83 | . 4 . . . 1 5 1 1 3 2 . 16 4 1 . 1 1 . 5 2 3 12 6 . 3 2 10 Max in Single Turn 6 | . 2 . . . . 3 . 1 2 1 . 6 1 1 . 1 1 . 2 1 1 3 2 . 2 1 2 Garrison Access 2 | . . . . . 1 . . . . . . . . . . . . . . . 1 . . . . . . Garrison Relay 6 | . . . . . . . . . 1 . . . 1 . . . . . . . . . 3 . 1 . . Phase Generator 2 | . . . . . . . . . 1 . . . . . . . . . . . . . . . 1 . . Network Hub 3 | . . . . . . . . . . . . . . . . . . . . 3 . . . . . . . Machines Repaired . | . . . . . . . . . . . . . . . . . . . . . . . . . . . . Machines Dismantled . | . . . . . . . . . . . . . . . . . . . . . . . . . . . . Machines Sabotaged 3 | . . . . . . . . . . . . . . . . . . . . 3 . . . . . . . Overloaded Fab Kills . | . . . . . . . . . . . . . . . . . . . . . . . . . . . . Hacking | -11 -10 -10 -10 -9 -8 -8 -8 -6 -6 -6 -6 -5 -5 -4 -4 -4 -4 -4 -4 -4 -3 -3 -3 -2 -2 -2 -2 --------- Run | Yrd Mat Min Exi Min Mat Sto Rec Fac Gar Fac Low Fac Gar Fac Was Fac Ext Cet Arc Hub Res Tes Gar Res Gar Res Qua Machines Accessed 79 | . 6 . 3 . 8 4 12 3 2 2 . 1 1 2 . 2 13 1 . 5 4 3 2 1 . 4 . Terminals 53 | . 4 . . . 7 3 5 1 2 1 . . 1 1 . 2 13 1 . 5 3 1 2 . . 1 . Fabricators 3 | . . . . . . . . 1 . . . . . . . . . . . . . . . . . 2 . Repair Stations 2 | . 1 . . . . . . . . 1 . . . . . . . . . . . . . . . . . Recycling Units 9 | . 1 . . . . 1 6 . . . . . . . . . . . . . . . . . . 1 . Scanalyzers 2 | . . . . . . . . . . . . . . 1 . . . . . . . 1 . . . . . Garrison Access 6 | . . . . . 1 . . 1 . . . 1 . . . . . . . . 1 1 . 1 . . . Total Hacks 259 | . 21 . 13 . 43 20 47 9 4 4 . 1 2 5 . 4 28 2 . 12 11 9 7 1 . 16 . Successful 158 | . 11 . 13 . 27 16 36 5 2 3 . 1 1 4 . 3 12 1 . 4 2 4 2 1 . 10 . Failed 101 | . 10 . . . 16 4 11 4 2 1 . . 1 1 . 1 16 1 . 8 9 5 5 . . 6 . Catastrophic 21 | . 2 . . . . . . 1 . 1 . . 1 . . . 2 1 . 2 5 2 3 . . 1 . Database Lockouts . | . . . . . . . . . . . . . . . . . . . . . . . . . . . . Manual 110 | . 8 . 1 . 28 15 29 2 . 1 . . . . . . 8 1 . 11 . . 2 . . 4 . Terminals 171 | . 12 . . . 42 17 15 4 4 2 . . 2 1 . 4 28 2 . 12 10 7 7 . . 2 . Fabricators 17 | . . . . . . . . 4 . . . . . . . . . . . . . . . . . 13 . Repair Stations 7 | . 5 . . . . . . . . 2 . . . . . . . . . . . . . . . . . Recycling Units 38 | . 4 . . . . 3 30 . . . . . . . . . . . . . . . . . . 1 . Scanalyzers 5 | . . . . . . . . . . . . . . 4 . . . . . . . 1 . . . . . Garrison Access 6 | . . . . . 1 . . 1 . . . 1 . . . . . . . . 1 1 . 1 . . . Terminal Hacks 67 | . 4 . 13 . 11 8 7 . 2 1 . . 1 . . 3 9 1 . 1 1 2 2 . . 1 . Record 12 | . . . 12 . . . . . . . . . . . . . . . . . . . . . . . . Part Schematic 4 | . . . . . 1 . 3 . . . . . . . . . . . . . . . . . . . . Robot Schematic 2 | . 1 . . . . 1 . . . . . . . . . . . . . . . . . . . . . Robot Analysis 5 | . . . . . 2 2 . . . . . . . . . . 1 . . . . . . . . . . Open Door 10 | . . . . . . 1 . . . . . . . . . 1 6 1 . . . . 1 . . . . Branch Access Points 3 | . . . . . 1 1 . . . . . . . . . . . . . . . . . . . 1 . Emergency Access Points 3 | . . . . . . . . . 1 . . . 1 . . . . . . . . . 1 . . . . Terminal Index 2 | . . . . . 1 . . . . . . . . . . . . . . 1 . . . . . . . Repair Station Index 1 | . . . . . . . . . . . . . . . . 1 . . . . . . . . . . . Alert Level 3 | . 2 . . . . . 1 . . . . . . . . . . . . . . . . . . . . Unreport Threat 5 | . 1 . . . . 1 1 . . 1 . . . . . . 1 . . . . . . . . . . Locate Traps 5 | . . . . . 2 1 . . . . . . . . . . 1 . . . 1 . . . . . . Reprogram Traps 1 | . . . . . . 1 . . . . . . . . . . . . . . . . . . . . . Recall Investigation 1 | . . . . . . . . . . . . . . . . 1 . . . . . . . . . . . Hauler Manifests 1 | . . . . . 1 . . . . . . . . . . . . . . . . . . . . . . Zone Layout 3 | . . . . . 3 . . . . . . . . . . . . . . . . . . . . . . Patrol Navigation 1 | . . . . . . . . . 1 . . . . . . . . . . . . . . . . . . Derelict Proto ID Bank 1 | . . . 1 . . . . . . . . . . . . . . . . . . . . . . . . Protovariant Controls 2 | . . . . . . . . . . . . . . . . . . . . . . 2 . . . . . Release Object 2 | . . . . . . . 2 . . . . . . . . . . . . . . . . . . . . Fabricator Hacks 8 | . . . . . . . . 2 . . . . . . . . . . . . . . . . . 6 . Network Status 1 | . . . . . . . . . . . . . . . . . . . . . . . . . . 1 . Load Schematic 3 | . . . . . . . . 1 . . . . . . . . . . . . . . . . . 2 . Build 4 | . . . . . . . . 1 . . . . . . . . . . . . . . . . . 3 . Repair Station Hacks 6 | . 4 . . . . . . . . 2 . . . . . . . . . . . . . . . . . Scan Component 3 | . 2 . . . . . . . . 1 . . . . . . . . . . . . . . . . . Repair 3 | . 2 . . . . . . . . 1 . . . . . . . . . . . . . . . . . Recycling Unit Hacks 8 | . . . . . . . 7 . . . . . . . . . . . . . . . . . . 1 . Retrieve Matter 2 | . . . . . . . 2 . . . . . . . . . . . . . . . . . . . . Retrieve Components 6 | . . . . . . . 5 . . . . . . . . . . . . . . . . . . 1 . Scanalyzer 5 | . . . . . . . . . . . . . . 4 . . . . . . . 1 . . . . . Insert Component 3 | . . . . . . . . . . . . . . 2 . . . . . . . 1 . . . . . Analyze 2 | . . . . . . . . . . . . . . 2 . . . . . . . . . . . . . Garrison Access Hacks 6 | . . . . . 1 . . 1 . . . 1 . . . . . . . . 1 1 . 1 . . . Unlock Access 4 | . . . . . . . . 1 . . . 1 . . . . . . . . . 1 . 1 . . . Seal Access 2 | . . . . . 1 . . . . . . . . . . . . . . . 1 . . . . . . Unauthorized Hacks 58 | . 3 . . . 15 8 22 2 . . . . . . . . 3 . . 3 . . . . . 2 . Terminals 34 | . 2 . . . 15 5 5 1 . . . . . . . . 3 . . 3 . . . . . . . Track 6 | . . . . . 4 1 . . . . . . . . . . 1 . . . . . . . . . . Botnet 10 | . 1 . . . 3 1 2 1 . . . . . . . . 2 . . . . . . . . . . Detonate 1 | . . . . . . 1 . . . . . . . . . . . . . . . . . . . . . Disrupt 2 | . . . . . 1 1 . . . . . . . . . . . . . . . . . . . . . Operators 2 | . . . . . 1 1 . . . . . . . . . . . . . . . . . . . . . Skim 10 | . 1 . . . 6 . 3 . . . . . . . . . . . . . . . . . . . . Sabotage 3 | . . . . . . . . . . . . . . . . . . . . 3 . . . . . . . Fabricators 3 | . . . . . . . . 1 . . . . . . . . . . . . . . . . . 2 . Prioritize 1 | . . . . . . . . . . . . . . . . . . . . . . . . . . 1 . Liberate 2 | . . . . . . . . 1 . . . . . . . . . . . . . . . . . 1 . Repair Stations . | . . . . . . . . . . . . . . . . . . . . . . . . . . . . Recycling Units 21 | . 1 . . . . 3 17 . . . . . . . . . . . . . . . . . . . . Monitor 2 | . . . . . . 1 1 . . . . . . . . . . . . . . . . . . . . Reject 7 | . . . . . . 1 6 . . . . . . . . . . . . . . . . . . . . Recyclers 3 | . . . . . . 1 2 . . . . . . . . . . . . . . . . . . . . Mask 5 | . . . . . . . 5 . . . . . . . . . . . . . . . . . . . . Tunnel 4 | . 1 . . . . . 3 . . . . . . . . . . . . . . . . . . . . Scanalyzers . | . . . . . . . . . . . . . . . . . . . . . . . . . . . . Garrison Access . | . . . . . . . . . . . . . . . . . . . . . . . . . . . . Data Cores Recovered 1 | . . . . . . . . . . . . . . . . . 1 . . . . . . . . . . Used 1 | . . . . . . . . . . . . . . . . . 1 . . . . . . . . . . Hacking Detections 54 | . 5 . . . 7 3 6 2 2 1 . . 1 2 . 2 10 1 . 2 2 2 2 . . 4 . Full Trace Events 9 | . . . . . . . 1 1 . . . . 1 . . . 1 1 . 2 . . . . . 2 . Feedback Events . | . . . . . . . . . . . . . . . . . . . . . . . . . . . . Feedback Blocked . | . . . . . . . . . . . . . . . . . . . . . . . . . . . . Robot Schematics Acquired 3 | . 1 . . . . 1 . . . . . . . . . . . . . . . 1 . . . . . Robots Built 2 | . . . . . . . . . . . . . . . . . . . . . . . . . . 2 . Authchips . | . . . . . . . . . . . . . . . . . . . . . . . . . . . . Time 152 | . . . . . . . . . . . . . . . . . . . . . . . . . . 152 . Total Robot Build Rating 10 | . . . . . . . . . . . . . . . . . . . . . . . . . . 10 . Part Schematics Acquired 10 | . . . . . 1 . 3 . . . . . . 2 . . . . . . . 4 . . . . . Parts Built 6 | . . . . . . . . 2 . . . . . . . . . . . . . . . . . 4 . Authchips 1 | . . . . . . . . 1 . . . . . . . . . . . . . . . . . . . Time 91 | . . . . . . . . 31 . . . . . . . . . . . . . . . . . 60 . Total Part Build Rating 16 | . . . . . . . . 4 . . . . . . . . . . . . . . . . . 12 . Parts Repaired 2 | . 2 . . . . . . . . . . . . . . . . . . . . . . . . . . Time 78 | . 52 . . . . . . . . 26 . . . . . . . . . . . . . . . . . Parts Recycled . | . . . . . . . . . . . . . . . . . . . . . . . . . . . . Recycled Matter . | . . . . . . . . . . . . . . . . . . . . . . . . . . . . Retrieved Matter . | . . . . . . . . . . . . . . . . . . . . . . . . . . . . Retrieved Components 13 | . . . . . . . 11 . . . . . . . . . . . . . . . . . . 2 . Parts Scanalyzed 2 | . . . . . . . . . . . . . . 2 . . . . . . . . . . . . . Part Schematics Acquired 2 | . . . . . . . . . . . . . . 2 . . . . . . . . . . . . . Parts Damaged . | . . . . . . . . . . . . . . . . . . . . . . . . . . . . Bothacking | -11 -10 -10 -10 -9 -8 -8 -8 -6 -6 -6 -6 -5 -5 -4 -4 -4 -4 -4 -4 -4 -3 -3 -3 -2 -2 -2 -2 ------------ Run | Yrd Mat Min Exi Min Mat Sto Rec Fac Gar Fac Low Fac Gar Fac Was Fac Ext Cet Arc Hub Res Tes Gar Res Gar Res Qua Used RIF Installer 1 | . . . . . . . . . 1 . . . . . . . . . . . . . . . . . . Robots Hacked 25 | . . . . . . . . . . 3 . . . 6 . . . . . . . . 6 1 2 7 . Non-combat 10 | . . . . . . . . . . 3 . . . 3 . . . . . . . . . . . 4 . Combat 15 | . . . . . . . . . . . . . . 3 . . . . . . . . 6 1 2 3 . Robot Hacks Applied 32 | . . . . . . . . . . 4 . . . 11 . . . . . . . . 6 1 2 8 . no_distress 1 | . . . . . . . . . . 1 . . . . . . . . . . . . . . . . . generate_echo 1 | . . . . . . . . . . . . . . 1 . . . . . . . . . . . . . find_chute 2 | . . . . . . . . . . . . . . 2 . . . . . . . . . . . . . deconstruct_machine 1 | . . . . . . . . . . 1 . . . . . . . . . . . . . . . . . drop_inventory 2 | . . . . . . . . . . . . . . . . . . . . . . . . . . 2 . locate_stockpiles 1 | . . . . . . . . . . . . . . . . . . . . . . . . . . 1 . find_recycling 1 | . . . . . . . . . . 1 . . . . . . . . . . . . . . . . . purge_threat 2 | . . . . . . . . . . . . . . 2 . . . . . . . . . . . . . reprogram_traps 1 | . . . . . . . . . . . . . . 1 . . . . . . . . . . . . . clear_recycling 1 | . . . . . . . . . . . . . . 1 . . . . . . . . . . . . . map_route 2 | . . . . . . . . . . 1 . . . . . . . . . . . . . . . 1 . amplify_resonance 3 | . . . . . . . . . . . . . . 1 . . . . . . . . . . 1 1 . disable_weapons 1 | . . . . . . . . . . . . . . 1 . . . . . . . . . . . . . overwrite_iff 2 | . . . . . . . . . . . . . . 1 . . . . . . . . . . . 1 . formatsys_high 11 | . . . . . . . . . . . . . . 1 . . . . . . . . 6 1 1 2 . Relay Couplers Released 20 | . . . . . . . . . 3 . . . 4 . . . . . . . . . 10 . 3 . . Machine Destruction 20 | . . . . . . . . . 3 . . . 4 . . . . . . . . . 10 . 3 . . Attached 10 | . . . . . . . . . . 1 . . 1 1 . . . . . . . . 3 . 1 3 . Fabnet Peak Effective % . | . . . . . . . . . . . . . . . . . . . . . . . . . . . . Robots Rewired 14 | . . . 3 . . . . . . . . 1 1 . . . 6 . . . . . 3 . . . . Allies Hacked 3 | . . . . . . . . . . . . . . . . . . . . . . . . . 1 2 . Hacks Repelled . | . . . . . . . . . . . . . . . . . . . . . . . . . . . . Allies | -11 -10 -10 -10 -9 -8 -8 -8 -6 -6 -6 -6 -5 -5 -4 -4 -4 -4 -4 -4 -4 -3 -3 -3 -2 -2 -2 -2 -------- Run | Yrd Mat Min Exi Min Mat Sto Rec Fac Gar Fac Low Fac Gar Fac Was Fac Ext Cet Arc Hub Res Tes Gar Res Gar Res Qua Total Allies 58 | . . . 3 3 . 10 . . . . 1 1 1 2 . . 16 5 . . . . 9 1 1 5 . Largest Group 10 | . . . 3 6 6 10 10 . . . 1 1 1 2 . . 8 7 6 5 . . 7 7 5 2 . Highest-Rated Group 683 | . . . 37 77 77 173 173 . . . 180 29 85 105 . . 364 683 582 423 . . 318 318 233 128 . Highest-Rated Ally 180 | . . . 21 21 21 29 29 . . . 180 29 85 58 . . 159 159 159 96 . . 64 64 64 64 . Total Orders 3 | . . . . . 2 . 1 . . . . . . . . . . . . . . . . . . . . STAY 2 | . . . . . 1 . 1 . . . . . . . . . . . . . . . . . . . . FOLLOW 1 | . . . . . 1 . . . . . . . . . . . . . . . . . . . . . . Ally Attacks 383 | . . . . . 24 11 73 . . . 3 4 1 11 . . 91 56 15 38 . . 6 . 44 6 . Total Damage 9945 | . . . . . 234 184 924 . . . 128 57 34 204 . . 2751 1399 779 1690 . . 214 . 1219 128 . Kills 59 | . . . . . 6 1 9 . . . 1 . . 1 . . 18 10 4 5 . . . . 4 . . Allies Corrupted 3 | . . . . . . . . . . . . . . . . . . . . 2 . . . . 1 . . Allies Melted 1 | . . . . . . . . . . . . . . . . . 1 . . . . . . . . . . Intel | -11 -10 -10 -10 -9 -8 -8 -8 -6 -6 -6 -6 -5 -5 -4 -4 -4 -4 -4 -4 -4 -3 -3 -3 -2 -2 -2 -2 ------- Run | Yrd Mat Min Exi Min Mat Sto Rec Fac Gar Fac Low Fac Gar Fac Was Fac Ext Cet Arc Hub Res Tes Gar Res Gar Res Qua Robot Analysis Total 5 | . . . . . 2 2 . . . . . . . . . . 1 . . . . . . . . . . Derelict Logs Recovered 1 | . . . . . . . . . . . 1 . . . . . . . . . . . . . . . . Drone Launches . | . . . . . . . . . . . . . . . . . . . . . . . . . . . . Drone Recoveries . | . . . . . . . . . . . . . . . . . . . . . . . . . . . . Exploration | -11 -10 -10 -10 -9 -8 -8 -8 -6 -6 -6 -6 -5 -5 -4 -4 -4 -4 -4 -4 -4 -3 -3 -3 -2 -2 -2 -2 ------------- Run | Yrd Mat Min Exi Min Mat Sto Rec Fac Gar Fac Low Fac Gar Fac Was Fac Ext Cet Arc Hub Res Tes Gar Res Gar Res Qua Turns Passed 22005 | 180 939 65 724 43 1215 548 4345 529 1248 912 1340 991 1110 536 109 101 1559 350 810 123 1058 427 859 58 1059 491 276 Spaces Moved 13232 | 107 561 58 588 31 557 180 1508 622 547 464 829 394 510 561 123 182 1000 182 110 137 1415 473 631 88 273 819 282 Core 566 | 6 . . . . . . . . . 1 527 . . . . . . . . . . . . . . . 32 Treads 3588 | . 82 . . . 213 180 1230 . 88 285 . 5 92 287 123 182 665 . . . . . 156 . . . . Legs 2221 | . . . . . . . 56 . 154 97 286 347 36 274 . . 335 182 110 137 50 . 44 . 101 . 12 Wheels 1625 | 101 479 58 588 31 344 . . . . 24 . . . . . . . . . . . . . . . . . Hover 208 | . . . . . . . . . . 57 . 42 104 . . . . . . . . . . . . . 5 Flight 5024 | . . . . . . . 222 622 305 . 16 . 278 . . . . . . . 1365 473 431 88 172 819 233 Fastest Speed 13 | 50 80 110 110 110 110 238 166 41 33 74 50 76 13 36 36 36 36 69 69 69 51 51 42 42 32 32 35 Average Speed 101 | 90 111 110 110 110 175 241 235 41 75 111 117 153 78 36 43 36 92 69 69 69 57 51 76 42 123 33 47 Slowest Speed 532 | 100 160 110 110 110 242 250 403 41 220 265 200 327 532 134 134 36 167 69 69 69 109 51 139 42 271 37 300 Overloaded Moves 1 | . . . . . . . . . . . . . 1 . . . . . . . . . . . . . . Propulsion Burnouts . | . . . . . . . . . . . . . . . . . . . . . . . . . . . . Robots Hopped 39 | . . . . . . . . . . . . . 2 . . . . . . . 13 5 . . 1 18 . Cave-ins Triggered . | . . . . . . . . . . . . . . . . . . . . . . . . . . . . Exploration Rate (%) 45 | 5 84 30 90 14 36 30 97 16 55 15 84 9 58 19 69 5 76 65 80 33 45 79 55 3 36 37 41 Regions Visited 27 Branch Regions 12 Pre-discovered Areas 10 | . 1 . 1 . 4 . 3 . . . 1 . . . . . . . . . . . . . . . . Known Exits Taken 8 | . . . . . 1 1 . 1 . . . 1 . . . . . . . . 1 1 . 1 . 1 . Unknown Exits Taken 13 | 1 1 1 1 1 . . 1 . . 1 1 . . . . 1 1 1 1 1 . . . . . . . Scrap Searched 10 | . . . . . . . . . . . 10 . . . . . . . . . . . . . . . . Spaces Dug 82 | . 2 . . . 16 . . 6 9 17 . 2 . 3 21 . . . . 4 1 1 . . . . . Terrain Destroyed 896 | . 11 . . . 33 45 11 9 82 55 . 40 4 10 21 . 11 16 29 4 29 197 111 . 114 3 61 Melee 13 | . 2 . . . 2 . . 6 . . . 1 . 2 . . . . . . . . . . . . . Projectile 192 | . . . . . 1 . 1 3 . 13 . 4 4 1 21 . 11 16 29 4 28 21 18 . 13 3 1 AOE 681 | . 9 . . . 30 45 10 . 82 42 . 35 . 7 . . . . . . . 176 93 . 100 . 52 Terrain Rammed 1 | . . . . . . . . . . . . . . . . . . . . 1 . . . . . . . Walls Destroyed . | . . . . . . . . . . . . . . . . . . . . . . . . . . . . Machines Disabled 1 | . . . . . . . . . . . . . . . . . . . . 1 . . . . . . . Actions | -11 -10 -10 -10 -9 -8 -8 -8 -6 -6 -6 -6 -5 -5 -4 -4 -4 -4 -4 -4 -4 -3 -3 -3 -2 -2 -2 -2 --------- Run | Yrd Mat Min Exi Min Mat Sto Rec Fac Gar Fac Low Fac Gar Fac Was Fac Ext Cet Arc Hub Res Tes Gar Res Gar Res Qua Total 20186 | 145 777 58 647 39 710 258 2293 857 1276 752 1174 729 1081 807 147 216 1533 355 774 160 1548 577 892 108 904 996 373 Wait 4905 | . 106 . . 6 40 8 711 184 612 164 316 223 418 140 5 17 340 129 629 . 44 17 97 14 539 144 2 Move 13136 | 106 560 57 587 30 556 179 1507 622 546 463 828 393 505 561 122 181 999 181 109 136 1389 464 630 87 270 786 282 Hop 33 | . . . . . . . . . . . . . 2 . . . . . . . 12 4 . . 1 14 . Pick Up 228 | 9 19 . 8 1 22 11 24 5 13 11 1 14 12 7 1 3 9 4 . 1 17 7 13 2 4 6 4 Fast Attach 158 | 7 4 . . . 5 4 2 3 4 8 9 11 9 11 2 2 18 5 2 . 13 12 4 . 5 3 15 Attach 114 | 1 5 . . . 10 2 . 5 3 8 1 8 10 3 1 1 3 1 . 2 4 8 12 2 8 4 12 Detach 34 | . . . . . . . . . 1 . 1 5 3 5 . 1 . . . . 1 3 4 1 3 . 6 Swap 110 | . 8 1 . . 12 8 1 7 10 8 . 1 3 5 . 1 4 1 1 1 6 10 10 . 7 5 . Drop 279 | 1 7 . 6 1 18 18 32 8 21 13 3 16 16 7 1 8 26 10 3 1 20 16 5 . 10 5 7 Fire 847 | 21 49 . 21 1 42 28 16 10 60 54 12 31 95 32 15 2 40 24 30 2 42 35 78 2 49 29 27 Melee 82 | . 5 . . . 5 . . 13 6 6 . 5 . 36 . . 6 . . . . . . . . . . Ram 11 | . . . . . . . . . . . 3 . . . . . . . . 1 . . . . 3 . 4 Kick 30 | . . . . . . . . . . . . . . . . . . . . 16 . . . . . . 14 Crush 18 | . . . . . . . . . . . . 2 . . . . 11 . . . . . 5 . . . . Escape Stasis 34 | . . . . . . . . . . . . . 5 . . . . . . . . 1 23 . 5 . . Rewire 136 | . . . 25 . . . . . . . . 20 3 . . . 77 . . . . . 11 . . . . Trap 31 | . 14 . . . . . . . . 17 . . . . . . . . . . . . . . . . . Miscellaneous . | . . . . . . . . . . . . . . . . . . . . . . . . . . . . Route ------- -11/Scrapyard -10/Materials (discovered 6 exits: [*Mat x3] / [*Min x2] / [*Sub]) -10/Mines -10/Exiles -9/Mines -8/Materials (discovered 5 exits: *Fac x3 / *Sto x2) -8/Storage -8/Recycling -6/Factory (discovered 2 exits: [*Low] / Gar) -6/Garrison -6/Factory -6/Lower Caves (discovered 2 exits: *Low / *Fac) -5/Factory -5/Garrison -4/Factory -4/Waste -4/Factory (discovered 3 exits: *Res x2 / *Ext) -4/Extension (discovered 2 exits: *Res / *Cet) -4/Cetus (discovered 2 exits: *Res / [*Arc]) -4/Archives (discovered 2 exits: *Hub x2) -4/Hub_04(d) -3/Research (discovered 2 exits: *Res / *Tes) -3/Testing (discovered 2 exits: *Res / Gar) -3/Garrison (discovered 2 exits: *Res x2) -2/Research -2/Garrison -2/Research (discovered 3 exits: [*Acc] / *Qua x2) -2/Quarantine History --------- Turn | Location | Event 26 | -11/Scrapyard | Discovered new exit (range 16) 181 | -11/Scrapyard | Entered Materials 272 | -10/Materials | Discovered new exit (range 11) 287 | -10/Materials | Discovered new exit (range 16) 305 | -10/Materials | Build established: Mutant 378 | -10/Materials | Lost 5 parts (1p1n1u2w) 431 | -10/Materials | Discovered new exit (range 9) 686 | -10/Materials | Discovered new exit (range 16) 824 | -10/Materials | Discovered new exit (range 11) 848 | -10/Materials | Discovered new exit (range 5) 883 | -10/Materials | Build established: Scavenger-Mutant 956 | -10/Materials | Repaired Lgt. Treads 981 | -10/Materials | Derelicts attacked the area 983 | -10/Materials | Repaired Lgt. Treads 1120 | -10/Materials | Entered Mines 1180 | -10/Mines | Deemed a non-threat by the Exiles lab entrance 1180 | -10/Mines | Discovered new exit (range 5) 1185 | -10/Mines | Entered Exiles 1185 | -10/Exiles | Found Exiles lab destroyed 1320 | -10/Exiles | Learned location of Zion (-6) 1561 | -10/Exiles | Opened EX-Vault 1568 | -10/Exiles | Found PSU Rigger 1864 | -10/Exiles | Discovered new exit (range 15) 1909 | -10/Exiles | Entered Mines 1909 | -9/Mines | Accompanied by 3 allies 1912 | -9/Mines | Assisted by bots powering up and referring to "LRC-V3" 1935 | -9/Mines | Discovered new exit (range 10) 1952 | -9/Mines | Entered Materials 1952 | -8/Materials | Accompanied by 6 allies 1952 | -8/Materials | Evolved 4 slots: Propulsion x2, Utility x2 2742 | -8/Materials | Identified exit to Storage 2789 | -8/Materials | Learned Factory fabricator intel 2826 | -8/Materials | Learned location of 1 exit from Recycling 2851 | -8/Materials | Learned location of 1 exit from Lower Caves 2865 | -8/Materials | Identified exit to Factory 2868 | -8/Materials | Learned Storage emergency access door positions 3106 | -8/Materials | Lost 3 parts (1p1n1u) 3167 | -8/Materials | Entered Storage 3299 | -8/Storage | Identified exit to Recycling 3649 | -8/Storage | Assisted by bots powering up and referring to "LRC-V3" 3692 | -8/Storage | Used back door to open Recycling access 3715 | -8/Storage | Entered Recycling 3715 | -8/Recycling | Accompanied by 10 allies 3716 | -8/Recycling | Identified exit to Scraptown 3946 | -8/Recycling | Build established: Commander-Mutant 4230 | -8/Recycling | Discovered new exit (range 9) 5100 | -8/Recycling | Scanned before Scraplab entrance 5145 | -8/Recycling | Angered Scraplab inhabitants 5148 | -8/Recycling | Found Prototype Device 5148 | -8/Recycling | Identified Scrap Engine 5189 | -8/Recycling | Lost 4 allies 5690 | -8/Recycling | Murdered 6 allies 5956 | -8/Recycling | Build established: Mutant 7250 | -8/Recycling | Build established: Construct 8060 | -8/Recycling | Entered Factory 8060 | -6/Factory | Evolved 4 slots: Power x1, Propulsion x2, Weapon x1 8061 | -6/Factory | Loaded intel: 6 fabricator locations 8410 | -6/Factory | Search patrols dispatched 8450 | -6/Factory | Discovered new exit (range 3) 8509 | -6/Factory | Fabricated Trap Extractor (x2) 8589 | -6/Factory | Identified exit to Garrison 8589 | -6/Factory | Entered Garrison 8862 | -6/Garrison | Spotted B-75 Beast 8941 | -6/Garrison | Installed Relay Interface Framework 8949 | -6/Garrison | Garrison Relay disabled 9237 | -6/Garrison | Triggered checkpoint 9271 | -6/Garrison | Triggered checkpoint 9349 | -6/Garrison | Discovered new exit (range 14) 9657 | -6/Garrison | Phase Generator disabled 9837 | -6/Garrison | Entered Factory 9874 | -6/Factory | Spotted B-75 Beast 9926 | -6/Factory | Destroyed B-75 Beast 10252 | -6/Factory | Found Prototype Processor 10252 | -6/Factory | Identified Exp. Targeting Computer 10258 | -6/Factory | Found Exp. Targeting Computer 10537 | -6/Factory | First assault squad dispatched 10614 | -6/Factory | Cargo convoy interrupted 10631 | -6/Factory | Core integrity fell below 50% 10644 | -6/Factory | System corruption reached 10% 10654 | -6/Factory | Found Prototype Launcher 10654 | -6/Factory | Identified Com. Tesla Bomb Launcher 10695 | -6/Factory | Lost 9 parts (2p2n2u3w) 10734 | -6/Factory | Discovered new exit (range 16) 10749 | -6/Factory | Entered Lower Caves 10750 | -6/Lower Caves | Identified exit to Lower Caves 10776 | -6/Lower Caves | Lost 5 parts (1p2n2w) 10914 | -6/Lower Caves | Build established: Mutant 11024 | -6/Lower Caves | Attracted the attention of an 0b10 outpost 11067 | -6/Lower Caves | Core integrity fell below 20% 11239 | -6/Lower Caves | 7V-RTL showed up to help 11241 | -6/Lower Caves | 7V-RTL revealed a hidden path 11548 | -6/Lower Caves | Build established: Derelict-Mutant 12089 | -6/Lower Caves | Entered Factory 12089 | -5/Factory | Evolved 2 slots: Utility x2 12419 | -5/Factory | Garrison activated, responded to threat 12456 | -5/Factory | Lost 5 parts (3n1u1w) 12479 | -5/Factory | System corruption reached 10% 12531 | -5/Factory | Lost 4 parts (2p2n) 12689 | -5/Factory | First assault squad dispatched 12981 | -5/Factory | Build established: Construct 13068 | -5/Factory | Identified exit to Garrison 13080 | -5/Factory | Entered Garrison 13091 | -5/Garrison | Spotted B-75 Beast 13091 | -5/Garrison | Spotted B-86 Titan 13133 | -5/Garrison | Destroyed B-86 Titan 13167 | -5/Garrison | Rewired B-75 Beast 13183 | -5/Garrison | Destroyed B-75 Beast 13496 | -5/Garrison | Garrison Relay disabled 13498 | -5/Garrison | Triggered checkpoint 13607 | -5/Garrison | Spotted B-75 Beast 13608 | -5/Garrison | Triggered checkpoint 13663 | -5/Garrison | Core integrity fell below 50% 13687 | -5/Garrison | Lost 4 parts (3u1w) 13734 | -5/Garrison | Destroyed B-75 Beast 14104 | -5/Garrison | Triggered checkpoint 14120 | -5/Garrison | Triggered checkpoint 14130 | -5/Garrison | Triggered checkpoint 14186 | -5/Garrison | Discovered new exit (range 10) 14190 | -5/Garrison | Entered Factory 14190 | -4/Factory | Evolved 2 slots: Utility x2 14338 | -4/Factory | Lost 3 parts (1p1u1w) 14726 | -4/Factory | Sucked down chute 14726 | -4/Factory | Entered Waste 14741 | -4/Waste | EMP discharged 14741 | -4/Waste | System corruption reached 10% 14771 | -4/Waste | Spotted C-40 Crusher 14771 | -4/Waste | Spotted C-40 Crusher 14787 | -4/Waste | Spotted C-40 Crusher 14825 | -4/Waste | Discovered new exit (range 16) 14835 | -4/Waste | Entered Factory 14860 | -4/Factory | Spotted B-86 Titan 14913 | -4/Factory | Discovered new exit (range 7) 14927 | -4/Factory | Discovered new exit (range 5) 14930 | -4/Factory | Discovered new exit (range 16) 14936 | -4/Factory | Entered Extension 15155 | -4/Extension | Rescued a captive Derelict 15160 | -4/Extension | Rescued a captive Derelict 15371 | -4/Extension | Rescued a captive Derelict 15486 | -4/Extension | Disrupted transfer network 15613 | -4/Extension | Rescued a captive Derelict 15614 | -4/Extension | Rescued a captive Derelict 15700 | -4/Extension | Spotted B-86 Titan 15753 | -4/Extension | Lost 6 allies 16072 | -4/Extension | Spotted B-86 Titan 16219 | -4/Extension | Rescued a captive Derelict 16220 | -4/Extension | Rescued a captive Derelict 16272 | -4/Extension | Rescued a captive Derelict 16273 | -4/Extension | Rescued a captive Derelict 16348 | -4/Extension | Lost 5 allies 16440 | -4/Extension | Rescued A7 16458 | -4/Extension | Discovered new exit (range 10) 16458 | -4/Extension | Discovered new exit (range 6) 16490 | -4/Extension | Disrupted transfer network 16495 | -4/Extension | Entered Cetus 16495 | -4/Cetus | Accompanied by 3 allies (A7) 16500 | -4/Cetus | Acquired a Cetus Manufacturing Module code from A7 16504 | -4/Cetus | Spotted Cetus Guard 16504 | -4/Cetus | Spotted Cetus Guard 16508 | -4/Cetus | Spotted Cetus Guard 16517 | -4/Cetus | Allies destroyed Cetus Guard 16517 | -4/Cetus | Spotted Cetus Guard 16522 | -4/Cetus | Allies destroyed Cetus Guard 16533 | -4/Cetus | Allies destroyed Cetus Guard 16536 | -4/Cetus | Allies destroyed Cetus Guard 16599 | -4/Cetus | Escorted A7 to Cetus Mainframe 16605 | -4/Cetus | Started Cetus Manufacturing Module 16630 | -4/Cetus | Manufactured an Enhanced Grunt 16633 | -4/Cetus | Discovered new exit (range 16) 16655 | -4/Cetus | Manufactured an Enhanced Grunt 16680 | -4/Cetus | Manufactured an Enhanced Grunt 16705 | -4/Cetus | Manufactured an Enhanced Grunt 16730 | -4/Cetus | Manufactured an Enhanced Grunt 16735 | -4/Cetus | Spotted Cetus Guard 16735 | -4/Cetus | Spotted Cetus Guard 16744 | -4/Cetus | Allies destroyed Cetus Guard 16744 | -4/Cetus | Spotted Cetus Guard 16745 | -4/Cetus | Spotted Cetus Guard 16748 | -4/Cetus | Allies destroyed Cetus Guard 16750 | -4/Cetus | Allies destroyed Cetus Guard 16754 | -4/Cetus | Allies destroyed Cetus Guard 16759 | -4/Cetus | Discovered new exit (range 15) 16762 | -4/Cetus | Met Revision 17 16839 | -4/Cetus | Build established: Scavenger-Construct 16845 | -4/Cetus | Entered Archives 16845 | -4/Archives | Accompanied by 6 allies (A7) 16850 | -4/Archives | Received a hacking code to weaken MAIN.C 16883 | -4/Archives | Discovered new exit (range 16) 17027 | -4/Archives | Discovered new exit (range 16) 17655 | -4/Archives | Entered Hub_04(d) 17655 | -4/Hub_04(d) | Accompanied by 5 allies 17722 | -4/Hub_04(d) | Network Hub disabled 17742 | -4/Hub_04(d) | Discovered new exit (range 8) 17748 | -4/Hub_04(d) | Spotted Lightning 17749 | -4/Hub_04(d) | Spotted Lightning 17750 | -4/Hub_04(d) | Spotted Lightning 17750 | -4/Hub_04(d) | Spotted B-86 Titan 17757 | -4/Hub_04(d) | Network Hub disabled 17759 | -4/Hub_04(d) | Network Hub disabled 17776 | -4/Hub_04(d) | Spotted Lightning 17778 | -4/Hub_04(d) | Entered Research 17778 | -3/Research | Evolved 2 slots: Power x1, Utility x1 17808 | -3/Research | Lost 4 parts (1p2u1w) 17971 | -3/Research | Spotted B-86 Titan 17978 | -3/Research | Revision forces began assault on 0b10 18041 | -3/Research | Met up with Revision 17++ 18243 | -3/Research | Discovered new exit (range 10) 18282 | -3/Research | Lost 4 allies 18335 | -3/Research | Build established: Scavenger-Gunner 18478 | -3/Research | Research terminal network offline 18567 | -3/Research | Spotted Striker 18614 | -3/Research | Discovered new exit (range 8) 18617 | -3/Research | Identified exit to Research 18831 | -3/Research | Identified exit to Testing 18836 | -3/Research | Entered Testing 18849 | -3/Testing | Found Prototype Hackware 18867 | -3/Testing | Identified Ghost Barrier 18877 | -3/Testing | Found Prototype Hackware 18877 | -3/Testing | Identified Exp. System Shield 18935 | -3/Testing | Found Prototype Processor 18935 | -3/Testing | Identified Spectral Analyzer 18955 | -3/Testing | Discovered exit to Research (range 8) 19000 | -3/Testing | Protovariant out of control (PD-1TDF3FO7DA) 19000 | -3/Testing | Unleashed a protovariant (PD-1TDF3FO7DA) 19086 | -3/Testing | Destroyed 8 combat bots 19096 | -3/Testing | Found Launcher Loader 19111 | -3/Testing | Spotted Investigator 19112 | -3/Testing | Scanned by Researcher 19119 | -3/Testing | Destroyed Investigator 19135 | -3/Testing | Found Prototype Launcher 19135 | -3/Testing | Identified Containment Facilitator 19158 | -3/Testing | Lost 3 parts (1p1u1w) 19161 | -3/Testing | Found Prototype Launcher 19189 | -3/Testing | System corruption reached 10% 19219 | -3/Testing | Identified Hellfire Missile Launcher 19236 | -3/Testing | Found Prototype Ballistic Cannon 19259 | -3/Testing | Lost 4 parts (2p1n1u) 19263 | -3/Testing | Identified exit to Garrison 19263 | -3/Testing | Entered Garrison 19337 | -3/Garrison | Triggered checkpoint 19467 | -3/Garrison | Triggered checkpoint 19487 | -3/Garrison | Spotted B-86 Titan 19504 | -3/Garrison | Destroyed 10 combat bots 19609 | -3/Garrison | Core integrity fell below 50% 19649 | -3/Garrison | Lost 3 parts (1p1u1w) 19688 | -3/Garrison | Destroyed B-86 Titan 19794 | -3/Garrison | Triggered checkpoint 19798 | -3/Garrison | Triggered checkpoint 19835 | -3/Garrison | Destroyed 8 combat bots 19913 | -3/Garrison | Triggered checkpoint 19918 | -3/Garrison | Garrison Relay disabled 19922 | -3/Garrison | Q-Series assembled to engage unique threat in Research 19946 | -3/Garrison | Discovered exit to Research (range 11) 19994 | -3/Garrison | Discovered exit to Research (range 10) 20003 | -3/Garrison | Triggered checkpoint 20041 | -3/Garrison | Garrison Relay disabled 20122 | -3/Garrison | Entered Research 20122 | -2/Research | Accompanied by 6 allies 20122 | -2/Research | Evolved 2 slots: Utility x2 20151 | -2/Research | Found Hellfire Missile Launcher 20157 | -2/Research | Identified exit to Garrison 20180 | -2/Research | Entered Garrison 20180 | -2/Garrison | Accompanied by 5 allies 20213 | -2/Garrison | Spotted B-90 Cyclops 20222 | -2/Garrison | Triggered checkpoint 20251 | -2/Garrison | Allies destroyed B-90 Cyclops 20274 | -2/Garrison | Lost 4 allies 20300 | -2/Garrison | Phase Generator disabled 20628 | -2/Garrison | Build established: Bothacker-Gunner 20815 | -2/Garrison | P-80 Master assimilated allied Plague 9a 20956 | -2/Garrison | Triggered checkpoint 21016 | -2/Garrison | Garrison Relay disabled 21234 | -2/Garrison | Discovered new exit (range 10) 21239 | -2/Garrison | Entered Research 21295 | -2/Research | Identified exit to Quarantine 21419 | -2/Research | Fabricated E-15 Imp (x2) 21456 | -2/Research | Fabricated Imp. Light Armor Plating (x2) 21517 | -2/Research | Discovered new exit (range 15) 21518 | -2/Research | Build established: Bothacker-Sprinter 21527 | -2/Research | Found Exp. Actuator Array 21539 | -2/Research | First assault squad dispatched 21539 | -2/Research | P-80 Master assimilated allied Warden 9c 21622 | -2/Research | Fabricated Imp. Light Armor Plating (x2) 21675 | -2/Research | Spotted B-90 Cyclops 21707 | -2/Research | Lost 10 parts (2p3n2u3w) 21730 | -2/Research | Entered Quarantine 21753 | -2/Quarantine | Identified Perforator 21758 | -2/Quarantine | Found Alien Artifact 21758 | -2/Quarantine | Identified Phase Redirector 21776 | -2/Quarantine | Cryocooling Duct disabled 21791 | -2/Quarantine | Ambient heat levels rising (+20) 21791 | -2/Quarantine | Non-combat units ordered to evacuate 21795 | -2/Quarantine | Found Alien Artifact 21797 | -2/Quarantine | Identified Terrabomb 21797 | -2/Quarantine | Used Terrabomb 21801 | -2/Quarantine | Found Terrabomb 21807 | -2/Quarantine | System corruption reached 10% 21832 | -2/Quarantine | Found Alien Artifact 21833 | -2/Quarantine | Identified Core Reset Matrix 21833 | -2/Quarantine | Used Core Reset Matrix 21837 | -2/Quarantine | Detected hypermatrix surge 21837 | -2/Quarantine | Sensed 3 artifacts in vicinity 21893 | -2/Quarantine | Core integrity fell below 50% 21916 | -2/Quarantine | Lost 7 parts (1p3n1u2w) 21923 | -2/Quarantine | Destroyed 8 combat bots 21951 | -2/Quarantine | Core integrity fell below 20% 21980 | -2/Quarantine | First assault squad dispatched 22006 | -2/Quarantine | Destroyed by P-80 Master with Gamma Rifle Last Messages --------------- 21981_ The unstable cave ceiling collapses. 21982_ Hellfire Missile Launcher destroyed. 21982_ Phase Gun destroyed. 21985_ Acquired 10 matter. 21987_ Kicked P-80 Master. 21988_ Kicked P-80 Master out of the way. 21990_ The unstable cave ceiling collapses. 21990_ Kicked P-80 Master. 21991_ Imp. Targeting Computer destroyed. 21992_ Kicked P-80 Master out of the way. 21993_ Kicked P-80 Master. 22001_ System corrupted: Heat flow error (+138). 22002_ Kicked P-80 Master. 22003_ Kicked P-80 Master out of the way. 22003_ Myomer Leg destroyed. 22004_ Slammed into P-80 Master. 22004_ Adv. Target Analyzer broken. 22004_ Destabilizing: Short circuit. 22006_ Slammed into P-80 Master. 22006_ Destabilizing: System corrupted (+2). Map ----- +----------------------------------------------------+ | ?????????????????????????????????????????????????? | | ?????????????????????????????????????????????????? | | ?????????????????????????????????????????????????? | | ?????????????????????????????????????????????????? | | ?????????????????????????????????????????????????? | | ??????????????????????????????????????????!??????? | | ?????????????????????????????????????????????????? | | ?????????????????????????????????????????????????? | | ?????????????????????????????????????????????????? | | ?????????????????????????????????????????????????? | | ?????????????????????????????????????????????????? | | ?????????????????????????????????????????????????? | | ?????????????????????????????? ??????????????????? | | ????????????????????????????? "??????????????????? | | ????????????????????????????? "???? ???????????? | | ???????????????????????????? ""?? ??????????? | | ???????????????????????????? """" ??????????? | | ???????????????????????????T """ #?????????? | | ?????????????????????????#"" #?????????? | | ?????????????????????????#"" " #????????? | | ??????????????????########"" #????????? | | ??????????????????#"""""##" #????????? | | ??????????????????#"""""##" #????????? | | ??????????????????#" !" ## #????????? | | ??????????????????# !!! p #?????????? | | ??????????????????# !!=| @ # #?????????? | | ??????????????????####!### ########??? | | ????????????????????#!| #??? | | ????????????????????#! """ #??? | | ??????????????????###][ = % """ #??? | | ??????????????????# "[ #??? | | ?????????????????## "[ !! " #??? | | ???????????????# "%[ "" " #??? | | ?????????#+#########"! ==""" #??? | | ????? [ ! """ #??? | | ????? ! *! ! "" #??? | | ????? ! ![! [ [ #??? | | ?????? ]! !![=[[* #??? | | ??????###########"###""###### # ## # # #??? | | ??????????????? # ??? # #??? | | ??????????????""" ### """" #? #??? | | ????????????? """ ]#?# """" ###?? ?? | | ????????????????" #?# """" #??? ??? | | ???????????????S [#?# """" #???? ???? | | ??????????????"" [[ #?#?? #?????????? | | ??????????????"" [ #?????* ##?????????? | | ?????????????? #????###+# ####??????????? | | ??????????????########?????????? ????????????? | | ???????????????????????????????? ???????????? | | ???????????????????????????????? ???????????? | +----------------------------------------------------+ Best States ------------- Heat Dissipation 108 Energy Generation 56 Energy Capacity 901 Matter Stores 300 Matter Capacity 300 Sight Range 16 Robot Scan Range 16 Terrain Scan Range 16 Terrain Scan Density 210 ECM Strength 1 Jamming Range 14 Armor Coverage 600 Resistance: KI 30 Resistance: TH 25 Weapon Shielding 90 Weapon Cycling 25 Phase Shifting 10 Evasion (%) 83 Targeting Accuracy 18 Melee Accuracy 6 Target Analysis 12 Recoil Reduction 6 Offensive Hacking 20 Defensive Hacking 20 Relay Coupler Types 3 Relay Coupler Value 57 Authchip Count 3 Trap Extractor Capacity 4 Item Schematics ----------------- None Robot Schematics ------------------ None Fabricated ------------ Trap Extractor | x2 | -6/Factory | Authchip E-15 Imp | x2 | -2/Research | Preloaded Imp. Light Armor Plating | x2 | -2/Research Imp. Light Armor Plating | x2 | -2/Research Alien Tech Used ----------------- Phase Redirector Terrabomb Core Reset Matrix Achievements -------------- None Challenges ------------ None Game ------ Seed ShadeTractorRailgun Manual? 0 Play Time 04:43:24 Cumulative 724.1 hours Start 2025.01.19 @ 20:27:24 End 2025.01.20 @ 01:13:08 Sessions 1 Manual Loads 0 Difficulty Rogue Special Mode None Game No. 160 Rogue 22 Adventurer 138 Explorer 0 Win Type - Total 11 Types 7/0/1/2/0/0/0/0/1 Lore% 78 Gallery% 84 Achievement% 76 Wizard Run 0 Options --------- Layout 1 ASCII 0 Keyboard 0 Movement Mouse Keybinds 0 Fullscreen 1 Font 20/SmallcapsGlow Map View 59x46 Zoom Use 1% Tactical HUD 1 Map Filters NONE Filters NONE Steam 1 RUN: 00c15566-2412-4b53-bd85-f774ac6e55b5